[Event "Susha Chess Blitz 2022"]
[Site "Shusha"]
[Date "2022.09.24"]
[Round "18"]
[White "Vidit, Santosh Gujrathi"]
[Black "Mamedyarov, Shakhriyar"]
[Result "1-0"]
[ECO "D27"]
[WhiteElo "2710"]
[BlackElo "2757"]
[Annotator "TA"]
[PlyCount "85"]
[EventDate "2022.09.24"]
[EventType "tourn"]
[EventCountry "AZE"]
[SourceTitle "playchess.com"]
[Source "ChessBase"]
[SourceQuality "1"]
[TimeControl "180+2"]

{[%evp 11,85,25,33,14,20,4,17,0,0,6,31,37,60,33,43,15,46,54,55,47,77,21,25,28,18,0,108,141,189,0,15,0,26,0,0,0,0,-27,0,0,10,0,0,0,0,0,60,54,45,26,22,22,43,27,91,-7,-7,-7,0,0,18,11,19,12,63,61,76,45,55,44,112,92,115,108,1204,1136]} 1. d4 {[%emt 0:00:02]} d5 {[%emt 0:00:01]} 2. c4 {[%emt 0:00:01]} dxc4 {[%emt 0:00:02]} 3. Nf3 {[%emt 0:00:05]} Nf6 {[%emt 0:00:01]} 4. e3 {[%emt 0:00:01]} e6 {[%emt 0:00:00]} 5. Bxc4 {[%emt 0:00:01]} c5 {[%emt 0:00:01]} 6. O-O a6 7. Re1 {[%emt 0:00:14] D27: Queen's Gambit Accepted: Classical main line: 7 e4!? and 7 a4.} b5 {[%emt 0:00:11]} 8. Bf1 {[%emt 0:00:03]} Bb7 {[%emt 0:00:08]} 9. a4 {[%emt 0:00:06] The position is equal.} b4 {[%emt 0:00:10]} 10. Nbd2 {[%emt 0:00:08]} Nbd7 {[%emt 0:00:10]} 11. e4 {[%emt 0:00:19][%cal Be3e4,Be4e5][%mdl 32] And now d5 would win.} cxd4 {[%emt 0:00:02]} 12. e5 {[%emt 0:00:02]} Nd5 {[%emt 0:00:06] [#]} ({But not} 12... Ng4 13. Nc4 $16) 13. Ne4 $146 {[%emt 0:00:08]} ({Predecessor:} 13. Nc4 Be7 14. Nxd4 O-O 15. Qg4 Re8 16. Bh6 g6 17. h4 Rc8 18. h5 Nc5 19. Rad1 {1-0 (32) Grigorov,G (2511)-Rustemov,A (2525) Chess.com INT 2022}) 13... Ne3 {[%emt 0:00:14]} 14. fxe3 {[%emt 0:00:13]} Bxe4 {[%emt 0:00:02]} 15. exd4 {[%emt 0:00:02]} Bd5 {[%emt 0:00:03]} 16. a5 {[%emt 0:00:06]} (16. Ng5 $16) 16... Be7 $11 {[%emt 0:00:03]} 17. Bd3 {[%emt 0:00:03]} O-O {[%emt 0:00:07]} 18. Qe2 {[%emt 0:00:02]} Qc8 {[%emt 0:00:24]} (18... Nb8 $11 {keeps the balance.}) 19. Ng5 $16 {[%emt 0:00:06]} h6 {[%emt 0:00:31] [#]} (19... Bxg5 $16 20. Bxg5 Qb7) 20. Ne4 $2 {[%emt 0:00:14]} (20. Nh7 $1 $18) 20... f5 $1 $11 {[%emt 0:00:02]} 21. exf6 {[%emt 0:00:15]} Nxf6 {[%emt 0:00:01]} 22. Ng3 {[%emt 0:00:11]} (22. Nd2 $5 {[%cal Rd2c4]}) 22... Bd6 {[%emt 0:00:06]} 23. Bd2 {[%emt 0:00:06]} Qb8 {[%emt 0:00:29]} 24. Nf1 {[%emt 0:00:09]} Qa7 {[%emt 0:00:03]} 25. Be3 {[%emt 0:00:03]} b3 {[%emt 0:00:11]} 26. h3 {[%emt 0:00:11]} Qf7 {[%emt 0:00:07]} 27. Bxa6 {[%emt 0:00:12]} Nh5 {[%emt 0:00:18] White must now prevent ...Nf4.} 28. Bc4 {[%emt 0:00:08]} Kh8 {[%emt 0:00:10]} (28... Qc7 $11 29. Qxh5 (29. Bxd5 Rxf1+ 30. Kxf1 Ng3+ 31. Kf2 Rf8+ 32. Bf3 Nxe2 $11) 29... Qxc4) 29. Bxd5 $14 {[%emt 0:00:05]} exd5 {[%emt 0:00:01]} 30. a6 {[%emt 0:00:19]} (30. Nd2 $5 {[%cal Ra5a6]}) 30... Nf4 {[%emt 0:00:06] Prevents Qd3.} 31. Bxf4 {[%emt 0:00:09]} Qxf4 {[%emt 0:00:02]} 32. Qe3 {[%emt 0:00:02]} Qf7 {[%emt 0:00:03]} (32... Qf5 $11) 33. Re2 {[%emt 0:00:11] [#]} (33. Nh2 $16) 33... Rxa6 $1 $11 {[%emt 0:00:05]} 34. Rae1 {[%emt 0:00:04]} Raa8 {[%emt 0:00:03]} 35. Nd2 {[%emt 0:00:03]} Bf4 {[%emt 0:00:01]} 36. Qxb3 {[%emt 0:00:03]} Qf6 {[%emt 0:00:02]} 37. Qd3 {[%emt 0:00:02]} Bd6 {[%emt 0:00:02]} ({Better is} 37... Qa6 $11 38. Qxa6 Rxa6) 38. Nf3 $14 {[%emt 0:00:01]} Qf4 {[%emt 0:00:01]} 39. Qg6 {[%emt 0:00:04]} Rad8 {[%emt 0:00:08]} 40. Re6 {[%emt 0:00:02][%cal Be2e6,Be6e7,Be7f7][%mdl 32]} Bb8 {[%emt 0:00:01]} (40... Bb4 $14) 41. Re7 {[%emt 0:00:01][%csl Ge7][%cal Rg6g7]} Rg8 {[%emt 0:00:01]} 42. Rf7 {[%emt 0:00:02] White is much more active.} Qd6 {[%emt 0:00:02][%mdl 8192]} (42... Qg3 $16 43. Qf5 Rge8 44. Rxe8+ Rxe8) 43. Re6 {[%emt 0:00:02] Weighted Error Value: White=0.18 (very precise) /Black=0.22 (precise)} 1-0

[Event "Susha Chess Blitz 2022"]
[Site "Shusha"]
[Date "2022.09.24"]
[Round "18"]
[White "Kasimdzhanov, Rustam"]
[Black "Guseinov, Gadir"]
[Result "1/2-1/2"]
[ECO "B27"]
[WhiteElo "2670"]
[BlackElo "2661"]
[Annotator "TA"]
[PlyCount "102"]
[EventDate "2022.09.24"]
[EventType "tourn"]
[EventCountry "AZE"]
[SourceTitle "playchess.com"]
[Source "ChessBase"]
[SourceQuality "1"]
[TimeControl "180+2"]

{[%evp 9,102,22,19,20,15,28,34,0,37,29,63,41,42,1,0,2,41,56,47,33,37,34,50,7,14,-24,-18,-66,-73,-83,-85,-85,-84,-100,-102,-138,-77,-114,-118,-107,-104,-98,-116,-114,-113,-130,-134,-133,-131,-134,-129,-129,-127,-139,-137,-136,-137,-146,-137,-143,-146,-152,-137,-135,-134,-136,-114,-130,-127,-134,-120,-136,-125,-137,-110,-127,-127,-140,-127,-127,-110,-111,-15,-15,-11,-12,-12,-14,0,0,0,-14,-14,-41,0]} 1. e4 {[%emt 0:00:00]} c5 {[%emt 0:00:02]} 2. Nf3 {[%emt 0:00:01]} g6 {[%emt 0:00:02]} 3. c3 {[%emt 0:00:02]} d5 {[%emt 0:00:01]} 4. exd5 {[%emt 0:00:01]} Qxd5 {[%emt 0:00:04]} 5. d4 {[%emt 0:00:00]} Bg7 {[%emt 0:00:01]} 6. Nbd2 {[%emt 0:00:03] Threatening Bc4. B06: Modern Defence.} cxd4 {[%emt 0:00:07]} 7. Bc4 {[%emt 0:00:01]} Qd8 {[%emt 0:00:13]} 8. Qb3 {[%emt 0:00:20] White is slightly better.} e6 {[%emt 0:00:05]} 9. Nxd4 {[%emt 0:00:06] [#]} (9. Ne4 {keeps more tension.} Nf6 10. Bb5+ Kf8 11. Bg5) 9... Ne7 $146 {[%emt 0:00:02][%cal Bg8e7,Be7d5,Bd5b6,Bb6d5,Bd5c3][%mdl 32]} ({Predecessor:} 9... Nf6 10. N2f3 O-O 11. O-O Nc6 12. Nxc6 bxc6 13. Bf4 Nd5 14. Rad1 Qb6 15. Be5 Bb7 16. Bxg7 Kxg7 {½-½ (41) Blomqvist,E (2542)-Kulaots,K (2518) Puhajarve 2021}) 10. O-O {[%emt 0:00:05] White is more active.} Nbc6 {[%emt 0:00:03]} 11. N2f3 {[%emt 0:00:05]} O-O {[%emt 0:00:09]} 12. Bg5 {[%emt 0:00:05]} h6 {[%emt 0:00:37]} 13. Nxc6 {[%emt 0:00:11]} bxc6 {[%emt 0:00:02]} 14. Bf4 {[%emt 0:00:03]} Nd5 {[%emt 0:00:11]} 15. Bg3 {[%emt 0:00:06]} Qb6 {[%emt 0:00:16]} 16. Qa3 {[%emt 0:00:04]} a5 {[%emt 0:00:04]} 17. Qb3 {[%emt 0:00:19] [#] Strongly threatening Bxd5.} a4 {[%emt 0:00:06]} 18. Qxb6 {[%emt 0:00:29]} (18. Qc2 $11) 18... Nxb6 $15 {[%emt 0:00:01]} 19. Be2 {[%emt 0:00:01]} a3 {[%emt 0:00:02]} 20. bxa3 {[%emt 0:00:01]} Nd5 {[%emt 0:00:12]} 21. c4 {[%emt 0:00:05]} Nc3 {[%emt 0:00:33]} (21... Bxa1 {seems wilder.} 22. cxd5 Bg7 23. dxc6 Rxa3 24. Bd6 Rxa2 25. Bxf8 Kxf8 26. Rd1 Ke7) 22. Rae1 {[%emt 0:00:04] [#]} Rxa3 {[%emt 0:00:07]} (22... Ba6 $142 $1 23. Bd3 Rfd8) 23. Bd6 {[%emt 0:00:12]} Rxa2 {[%emt 0:00:01][%cal Ba3a2,Ba2e2,Be2e4,Be4c4,Bc4c5,Bc5d5,Bd5d4][%mdl 32]} 24. Bxf8 {[%emt 0:00:02]} Nxe2+ {[%emt 0:00:02]} 25. Rxe2 {[%emt 0:00:01]} Rxe2 {[%emt 0:00:01]} 26. Bxg7 {[%emt 0:00:02]} Kxg7 $17 {[%emt 0:00:01][%mdl 4096] Endgame KRB-KRN} 27. Nd4 {[%emt 0:00:01][%csl LRc6,LRe2]} Re4 {[%emt 0:00:03]} 28. Nxc6 {[%emt 0:00:01]} Rxc4 {[%emt 0:00:02]} 29. Ne5 {[%emt 0:00:03]} Rc5 {[%emt 0:00:02]} 30. Nd3 {[%emt 0:00:09]} Rd5 {[%emt 0:00:05]} 31. Nf4 {[%emt 0:00:16]} Rd4 {[%emt 0:00:02]} 32. Ne2 {[%emt 0:00:01]} Rd2 {[%emt 0:00:03]} 33. Ng3 {[%emt 0:00:02]} g5 {[%emt 0:00:15]} 34. Rc1 {[%emt 0:00:01]} Bb7 {[%emt 0:00:02]} 35. h3 {[%emt 0:00:06]} Bd5 {[%emt 0:00:01]} 36. Nf1 {[%emt 0:00:03]} Rb2 {[%emt 0:00:03]} 37. Ne3 {[%emt 0:00:02]} Be4 {[%emt 0:00:02]} 38. Nc4 {[%emt 0:00:09]} Ra2 {[%emt 0:00:07]} 39. Nd6 {[%emt 0:00:02]} Bg6 {[%emt 0:00:05]} 40. Ne8+ {[%emt 0:00:01]} Kf8 {[%emt 0:00:01]} 41. Nf6 {[%emt 0:00:01]} Ra5 {[%emt 0:00:06]} 42. g4 {[%emt 0:00:14]} Ra8 {[%emt 0:00:05]} 43. Nd7+ {[%emt 0:00:08]} Kg7 {[%emt 0:00:01]} 44. Ne5 {[%emt 0:00:01]} Be4 {[%emt 0:00:09]} 45. f3 {[%emt 0:00:03]} Bd5 {[%emt 0:00:06]} ({Black should try} 45... Bg6 $17 46. Kg2 Ra5 47. Nxg6 Kxg6) 46. Rc7 $11 {[%emt 0:00:01]} Rf8 {[%emt 0:00:03]} 47. Kf2 {[%emt 0:00:04]} Kg8 {[%emt 0:00:02]} 48. Nd7 {[%emt 0:00:06]} Rd8 {[%emt 0:00:01]} 49. Ne5 {[%emt 0:00:01]} Rf8 {[%emt 0:00:03]} 50. Nd7 {[%emt 0:00:03]} Ra8 {[%emt 0:00:03]} 51. Ne5 {[%emt 0:00:05]} Rf8 {[%emt 0:00:02] Black had all chances to win.  Weighted Error Value: White=0.12 (very precise) /Black=0.12 (very precise)} 1/2-1/2

[Event "Susha Chess Blitz 2022"]
[Site "Shusha"]
[Date "2022.09.24"]
[Round "18"]
[White "Durarbayli, Vasif"]
[Black "Mamedov, Rauf"]
[Result "1-0"]
[ECO "B31"]
[WhiteElo "2628"]
[BlackElo "2646"]
[Annotator "TA"]
[PlyCount "79"]
[EventDate "2022.09.24"]
[EventType "tourn"]
[EventCountry "AZE"]
[SourceTitle "playchess.com"]
[Source "ChessBase"]
[SourceQuality "1"]
[TimeControl "180+2"]

{[%evp 13,79,0,10,11,9,16,10,15,31,13,13,0,0,0,0,-17,0,0,0,0,0,0,32,-42,-56,-56,-3,0,0,0,-6,-2,-1,-5,0,-20,-2,-89,-83,-98,-63,-125,59,27,67,0,77,82,72,88,336,331,331,331,432,427,425,402,486,458,1319,1208,29990,29991,29997,29977,29998,29991]} 1. e4 {[%emt 0:00:00]} c5 {[%emt 0:00:01]} 2. Nf3 {[%emt 0:00:01]} Nc6 {[%emt 0:00:01]} 3. Bb5 {[%emt 0:00:01]} g6 {[%emt 0:00:00]} 4. O-O {[%emt 0:00:01]} Bg7 {[%emt 0:00:01]} 5. c3 {[%emt 0:00:01]} Nf6 {[%emt 0:00:05]} 6. Re1 {[%emt 0:00:01]} O-O {[%emt 0:00:08]} 7. d4 {[%emt 0:00:00]} Qb6 {[%emt 0:00:01] Recently 7...d5 got a lot of attention.} 8. Bxc6 {[%emt 0:00:04] B31: Sicilian: 2...Nc6 3 Bb5 g6.} dxc6 {[%emt 0:00:07]} 9. h3 {[%emt 0:00:01] [#]} cxd4 $146 {[%emt 0:00:02]} ({Predecessor:} 9... Rd8 10. Qc2 h6 11. Be3 cxd4 12. cxd4 Qa5 13. Nbd2 Be6 14. Ne5 Rac8 15. Nb3 Qa4 {1-0 (30) Sasikiran,K (2647)-Baklan,V (2587) Tornelo INT 2021}) 10. cxd4 {[%emt 0:00:01] The position is equal.} Rd8 {[%emt 0:00:00][%cal Oe7e5]} 11. a4 {[%emt 0:00:01]} Be6 {[%emt 0:00:13]} 12. Nc3 {[%emt 0:00:21]} a5 {[%emt 0:00:11]} 13. Qe2 {[%emt 0:00:09]} Qb4 {[%emt 0:00:24]} 14. Be3 {[%emt 0:00:09]} Bc4 {[%emt 0:00:01]} 15. Qc2 {[%emt 0:00:02]} Bb3 {[%emt 0:00:09] A strong pair of Bishops.} 16. Qc1 {[%emt 0:00:01]} Nd7 {[%emt 0:00:17]} 17. Ra3 {[%emt 0:00:07]} Bc4 {[%emt 0:00:03]} 18. Na2 {[%emt 0:00:58]} (18. Bd2 $14 Qb6 19. e5) 18... Bxa2 $15 {[%emt 0:00:06]} 19. Rxa2 {[%emt 0:00:01]} c5 {[%emt 0:00:22]} ({Black should play} 19... e5 $15 20. Bd2 Qb6) 20. Bd2 $11 {[%emt 0:00:14]} Qb6 {[%emt 0:00:01]} 21. d5 {[%emt 0:00:01]} e6 {[%emt 0:00:06]} 22. dxe6 {[%emt 0:00:17]} Qxe6 {[%emt 0:00:01]} 23. Ra3 {[%emt 0:00:01]} c4 {[%emt 0:00:20]} 24. Bc3 {[%emt 0:00:06]} Bf8 {[%emt 0:00:14]} 25. Nd4 {[%emt 0:00:20] [#]} (25. Ra1 $11) 25... Qb6 $1 $17 {[%emt 0:00:01]} 26. Ra1 {[%emt 0:00:15]} Nc5 {[%emt 0:00:18]} 27. Qg5 {[%emt 0:00:10]} (27. Qe3 $15) 27... Bg7 $2 {[%emt 0:00:33] [#]} (27... Nd3 $17 28. Nf5 f6) 28. Nf5 $1 $14 f6 (28... Bxc3 29. bxc3) 29. Nh6+ {[%emt 0:00:15]} (29. Ne7+ $14 Kf7 30. Qh4 (30. Nd5 Qc6 $16)) 29... Kf8 {[%emt 0:00:04] [#]} (29... Bxh6 $11 {remains equal.} 30. Qxh6 Nd3) 30. Qh4 $1 $16 {[%emt 0:00:04] e5 is the strong threat.} Nd3 {[%emt 0:00:02][%csl LRb2,LRe1] Prevents e5.} 31. Ng4 {[%emt 0:00:02][%csl LRf6,LRh7]} Rd6 $2 {[%emt 0:00:04] A mistake that costs the game.} (31... h6 $16) 32. Qxh7 $18 {[%emt 0:00:07]} Nxe1 {[%emt 0:00:03]} 33. Rxe1 {[%emt 0:00:01][%cal Ba1e1,Be1e3,Be3f3][%mdl 32]} Re8 {[%emt 0:00:03]} 34. Qxg6 {[%emt 0:00:03]} Re7 {[%emt 0:00:03]} 35. Re3 {[%emt 0:00:06]} Rd1+ {[%emt 0:00:02]} 36. Kh2 {[%emt 0:00:01] Black must now prevent e5.} Qd6+ {[%emt 0:00:02]} (36... Qc7+ $142 37. Rg3 Rd3 38. Bxf6 Bxf6) 37. e5 {[%emt 0:00:07]} fxe5 {[%emt 0:00:01]} 38. Rf3+ {[%emt 0:00:01] White mates.} Kg8 {[%emt 0:00:04]} 39. Nf6+ {[%emt 0:00:03]} Kf8 {[%emt 0:00:02]} 40. Ne4+ {[%emt 0:00:01] Weighted Error Value: White=0.18 (very precise) /Black=0.49} 1-0